{"text_format":"3","workbook":"xlsx","n_sheets":5,"sheets":["general","SW-R","SW-L","Manually_operated","Obrázky"],"not_rendered":{"images":19,"defined_names":2,"comments":1},"read":"whole","date_system":"1900"}

{"sheet":"general","index":0,"n_rows":115,"n_cols":52,"rows_kept":115,"merged":[[1,16,2,27],[8,10,8,13],[8,17,8,18],[10,3,10,5],[11,1,11,3],[11,6,11,7],[11,15,11,17],[12,2,13,2],[12,7,19,7],[12,16,13,17],[14,2,16,2],[14,18,16,18],[16,1,18,1],[16,19,18,19],[17,18,19,18],[18,2,19,2],[19,19,19,20],[20,19,22,19],[20,20,22,20],[21,1,24,1],[22,18,26,18],[25,1,27,1],[26,7,27,7],[28,24,29,26],[31,5,31,6],[32,5,33,5],[37,23,38,25],[40,4,40,5],[40,23,41,25],[46,23,47,27],[48,17,49,27],[51,17,52,27],[53,17,54,27],[59,12,59,15],[59,17,59,18],[59,19,59,20],[59,21,59,22],[59,23,59,24],[60,17,60,18],[60,19,60,20],[60,21,60,22],[60,23,60,24],[61,17,62,20],[61,21,65,27],[64,13,64,15],[66,21,67,24],[66,26,66,27],[67,26,67,27]]}
[{"$nulls":29},"č.jaz.",{"$f":"VLOOKUP(E5,AD3:AE11,2,FALSE)","v":4},null,"SVYHLEDAT","CZ","EN","DE","PL","FR","NL","EST","FIN","RU",{"$nulls":4},{"$f":"$AG$100","v":"ręcznie wykonany"}]
[{"$nulls":16},{"$f":"VLOOKUP(AG12,AG2:AR94,$AE$1+1,FALSE)","v":"PROWADZENIE DLA WYSOKIEGO NADPROŻA (HL-1T)"},{"$nulls":12},"Jazyk","číslo",null,{"$f":"VLOOKUP(AH2,AH2:AR94,$AE$1,FALSE)","v":"Wybierz język"},"Zvolit jazyk: ","Select a language:","Wählen Sie eine Sprache","Wybierz język","Sélectionner une langue","Kies een taal:","Valige keel","Valitse kieli:","Выберите язык:",{"$nulls":4},{"$f":"$AG$106","v":"silnik elektryczny po prawej stronie"}]
[null,"Zvol jazyk:",{"$nulls":5},{"$f":"VLOOKUP(AG3,AG2:AR94,$AE$1+1,FALSE)","v":"Szerokość otworu"},{"$nulls":3},"mm",{"$nulls":17},"CZ",1,null,{"$f":"VLOOKUP(AH3,AH3:AR94,$AE$1,FALSE)","v":"Szerokość otworu"},"Šířka otvoru","Opening width","Lichte Breite","Szerokość otworu","LARGEUR DE BAIE","Dagmaat breedte","Ava laius","Oviaukon leveys","Ширина проема",{"$nulls":4},{"$f":"$AG$105","v":"silnik elektryczny po lewej stronie"}]
[null,"Select a language:",{"$nulls":21},{"$f":"VLOOKUP(AG16,AG2:AR94,$AE$1+1,FALSE)","v":"Max. W x H 3750x4000"},{"$nulls":5},"EN",2,null,{"$f":"VLOOKUP(AH4,AH4:AR95,$AE$1,FALSE)","v":"Wysokość otworu"},"Výška otvoru","Opening height","Lichte Höhe","Wysokość otworu","HAUTEUR DE BAIE","Dagmaat hoogte","Ava kõrgus","Oviaukon korkeus","Высота проема",{"$nulls":4},{"$f":"$AG$103","v":"Łańcuch napędu -  prawy"}]
[null,"Wählen Sie eine Sprache:",null,null,"PL",null,null,{"$f":"VLOOKUP(AG4,AG2:AR94,$AE$1+1,FALSE)","v":"Wysokość otworu"},{"$nulls":3},"mm",null,null,{"$f":"VLOOKUP(AH97,AH97:AR174,$AE$1,FALSE)","v":"Prosimy o wypełnienie pól oznaczonych kolorem!"},{"$nulls":8},{"$f":"VLOOKUP(AG13,AG2:AR94,$AE$1+1,FALSE)","v":"SPRĘŻYNY NAD NADPROŻEM"},{"$nulls":5},"DE",3,null,{"$f":"VLOOKUP(AH5,AH5:AR94,$AE$1,FALSE)","v":"Widok od środka"},"POHLED ZEVNITŘ","INTERIOR VIEW","INNENANSICHT","Widok od środka","VUE INTERIEURE","BINNENAANZICHT","seestvaade","SISÄLTÄPÄIN KUVATTUNA","Вид изнутри",{"$nulls":4},{"$f":"$AG$102","v":"Łańcuch napędu -  lewy"}]
[null,"Wybierz język:",{"$nulls":21},{"$f":"VLOOKUP(AG14,AG3:AR94,$AE$1+1,FALSE)","v":"dla HL>600 i HL<=1200"},{"$nulls":5},"PL",4,null,{"$f":"VLOOKUP(AH6,AH6:AR98,$AE$1,FALSE)","v":"Przekrój A-A"},"ŘEZ A-A","SECTION A-A","DURCHSCHNITT A-A","Przekrój A-A","COUPE A-A","DOORSNEDE A-A","vaade A-A","LEIKKAUS A-A","Разрез А-А"]
[null,"Sélectionner une langue:",{"$nulls":5},{"$f":"VLOOKUP(AG79,AG6:AR97,$AE$1+1,FALSE)","v":"Wolna przestrzeń nad nadprożem (min.)"},{"$nulls":3},"mm",{"$nulls":11},{"$f":"VLOOKUP(AG15,AG2:AR94,$AE$1+1,FALSE)","v":"Panel 40 mm"},{"$nulls":5},"FR",5,null,{"$f":"VLOOKUP(AH7,AH7:AR98,$AE$1,FALSE)","v":"Przekrój B-B"},"ŘEZ B-B","SECTION B-B","DURCHSCHNITT B-B","Przekrój B-B","COUPE B-B","DOORSNEDE B-B","VAADE B-B","LEIKKAUS B-B","Разрез B-B"]
[null,"Valige keel",{"$nulls":27},"NL",6,null,{"$f":"VLOOKUP(AH8,AH8:AR99,$AE$1,FALSE)","v":"Uwaga:"},"POZNÁMKA:","NOTE:","ACHTUNG:","Uwaga:","Remarque:","OPMERKING:","MÄRKUS","HUOMAUTUS:","ПРИМЕЧАНИЯ:"]
[null,"Valitse kieli:",{"$nulls":5},{"$f":"VLOOKUP(AG99,AG8:AR99,$AE$1+1,FALSE)","v":"Sterowanie"},{"$nulls":21},"EST",7]
[null,"Выберите язык:",{"$nulls":27},"FIN",8]
[{"$nulls":29},"RU",9]
[{"$nulls":19},{"$f":"VLOOKUP(AG6,AG2:AR94,$AE$1+1,FALSE)","v":"Przekrój A-A"},{"$nulls":12},"PROWADZENIE DLA WYSOKIEGO NADPROŻA (HL-1T)","VEDENÍ PRO VYSOKÝ PŘEKLAD (HL-1T)","HIGH LIFT SYSTEM (HL-1T)","HÖHERGEFÜHRTER BESCHLAG (HL-1T)","PROWADZENIE DLA WYSOKIEGO NADPROŻA (HL-1T)","LEVEE HAUTE (HL-1T)","HOOG PLAFONDSYSTEEM (HL-1T)","Kõrge tõste (HL-1T)","KORKEANOSTO (HL-1T)","ВЫСОКИЙ ПОДЪЕМ, С ПРЕДСОБРАННЫМ ВАЛОМ (HL<1200)"]
[{"$nulls":32},"SPRĘŻYNY NAD NADPROŻEM","PRUŽINY NAD PŘEKLADEM","springs above lintel","Federn oberhalb des Sturzes","SPRĘŻYNY NAD NADPROŻEM","RESSORTS AVANTS DEPORTES DU LINTEAU","verenpakket boven latei","Vedrud ava kohal","jouset ovipalkkin päällä","нижнее расположение вала"]
[{"$nulls":32},"dla HL>600 i HL<=1200","pro HL>600 a HL<=1200","for HL>600 and HL<=1200","fur HL>600 und HL<=1200","dla HL>600 i HL<=1200","pour HL>600 et HL<=1200","van HL>600 tot HL<=1200","HL>600 ja HL<=1200","pro HL>600 ja HL<=1200","при высоте подъема > 600 и <= 1200"]
[{"$nulls":32},"Panel 40 mm","PANEL 40mm","SECTION THICKNESS 40 mm","Paneel 40 mm","Panel 40 mm","40 mm PANNEAU","PANEEL 40 mm","Paneel 40 mm","Lamelli 40mm","ТОЛЩИНА СЕКЦИИ 40мм "]
[{"$nulls":32},"Max. W x H 3750x4000","Max. W x H 3750x4000","Max. W x H 3750x4000","Max. W x H 3750x4000","Max. W x H 3750x4000","Max. W x H 3750x4000","Max. W x H 3750x4000","Max. W x H 3750x4000","Max. W x H 3750x4000","макс. ШхВ (WxH) 3750x4000"]
[]
[{"$nulls":8},{"$f":" \"Z =  \" & N65","v":"Z =  Nie jest wymagane"}]
["*",{"$nulls":7},{"$f":" \"(1) \" & $AG$37","v":"(1) niezbędne miejsce"}]
[{"$nulls":8},{"$f":"IF(K7=AU1,\"\",\"(2) \"&$AG$48)","v":"(2) niezbędna przestrzeń boczna dla silnika lub napędu łańcuchowego"},{"$nulls":23},{"$f":"VLOOKUP(AH20,AH20:AR112,$AE$1,FALSE)","v":"montaż do muru i cegły"},"Montáž na cihlové zdivo","mounting on brickwork","Montage auf Mauerwerk und Ziegel","montaż do muru i cegły","montage sur béton","montage op beton","Paigaldus kiviseinale","asennus tiiliseinän","монтаж на бетон"]
[{"$nulls":8},{"$f":"IF(OR(K9=AU1,K9=AU3,K9=AU4),\"\",\"(3) \"&$AG$49)","v":"(3) Powierzchnia montażowa dla jednostki sterującej. Wymiary można znaleźć w dokumentacji produktu"},{"$nulls":15},{"$f":"VLOOKUP(AG20,AG2:AR94,$AE$1+1,FALSE)","v":"montaż do muru i cegły"},{"$nulls":7},{"$f":"VLOOKUP(AH21,AH21:AR113,$AE$1,FALSE)","v":"montaż do betonu porowatego"},"Montáž na porobeton","mounting on cellular concrete","Montage auf Porenbeton oder Gasbeton","montaż do betonu porowatego","montage sur parpaing creux","montage op gasbeton","Paigaldus poorbetoonile","asennus betoniin","монтаж на газобетон"]
[{"$nulls":32},{"$f":"VLOOKUP(AH22,AH22:AR114,$AE$1,FALSE)","v":"montaż do płaszcza"},"Montáž na opláštění","mounting on insulated cladding","Montage auf ISO-Trapezblechfassade","montaż do płaszcza","montage sur structure métallique  (a fournir par le charpentier)","montage op binnendooscontructie met damwandbeplating","Paigaldus soojustatud seinapaneelile","asennus eristettyyn seinäelementtiin","монтаж на металлокаркас"]
[{"$nulls":8},{"$f":"IF(OR(K9=AU1,K9=AU3,K9=AU4),\"\",\"(4) \"&$AG$51)","v":"(4) Parametry gniazdka elektrycznego można znaleźć w dokumentacji produktu."}]
[]
[{"$nulls":32},{"$f":"VLOOKUP(AH25,AH25:AR117,$AE$1,FALSE)","v":"PRACE, KTÓRE MUSZĄ ZOSTAĆ WYKONANE PRZEZ KLIENTA PRZED WYKONANIEM MONTAŻU, O ILE NIE UZGODNIONO INACZEJ."},"PRÁCE, KTERÉ MUSÍ BÝT PROVEDENY ZÁKAZNÍKEM PŘED MONTÁŽÍ, POKUD NEBYLO DOHODNUTO JINAK","WORK TO BE CARRIED OUT BY CUSTOMER, UNLESS IN ADVANCE OTHERWISE IS AGREED IN WRITING.","VORBEREITUNGEN UND ARBEITEN DIE VOM AUFTRAGGEBER ZU ERBRINGEN SIND, AUßER BEI SCHRIFTLICHER VEREINBARUNG IM VORAUS:","PRACE, KTÓRE MUSZĄ ZOSTAĆ WYKONANE PRZEZ KLIENTA PRZED WYKONANIEM MONTAŻU, O ILE NIE UZGODNIONO INACZEJ.","APPROVISIONNEMENT & TRAVAUX INCOMBANT AU MAITRE D'OUVRAGE  (sauf accord contraire)","VOORZIENINGEN EN WERKZAAMHEDEN DOOR OPDRACHTGEVER TE VERZORGEN, TENZIJ VOORAF SCHRIFTELIJK ANDERS IS OVEREENGEKOMEN ","Kliendi poolt tehtavad ettevalmistustööd v.a juhul kui pole kirjalikult teistmoodi kokku lepitud","ASIAKKAAN TEHTÄVÄT TYÖT, ELLEI ETUKÄTEEN KIRJALLISESTI MUUTOIN SOVITTU ","МАТЕРИАЛЫ И ПРОВЕДЕНИЕ РАБОТ ОБЕСПЕЧИВАЮТСЯ КЛИЕНТОМ,ЕСЛИ ИНОЕ НЕ ОГОВОРЕНО ЗАРАНЕЕ В ПИСЬМЕННОЙ ФОРМЕ"]
[{"$nulls":24},{"$f":"VLOOKUP(AG21,AG2:AR94,$AE$1+1,FALSE)","v":"montaż do betonu porowatego"},{"$nulls":7},"Konstrukcyjne:","Konstrukční:","Constructional :","Bauseits:","Konstrukcyjne:","Structure: ","Bouwkundig:","Ehituslikud:","\nRakenteellinen:","Конструктивно:"]
[{"$nulls":32},"Przygotowanie powierzchni montażowych dla prowadzenia bramy oraz dla sprężyn.","Příprava montážních ploch pro vedení vrat a pro pružiny.","Supply and fix mounting frame and mounting surfaces for the rails and the spring packet in case of aerated concrete or sandwichpanels etc.","Ein stählerner Montagerahmen zur Befestigung der vertikalen Laufschienen und des Federpakets bei nicht tragfähigen Flächen wie z.B. Porenbeton, Gasbeton, Isolationspanelen u.s.w..","Przygotowanie powierzchni montażowych dla prowadzenia bramy oraz dla sprężyn.","Préparation de la structure de montage des rails de guidage et des ressorts pour une pose sur panneaux isolants","Een stalen montageframe voor de bevestiging van de verticale looprails en het verenpakket bij niet dragende montagevlakken, zoals gasbeton, isolatiepanelen, sandwichpanelen enz.","Avaettevalmistusraami tarnimine ja paigaldus siinide ja vedrude kinnituseks","Toimittaa ja asentaa asennuskehyksen ja asennuspinnat kiskoille ja jousipaketille tapauksessa jossa kevytbetooni tai sandwich-paneeli jne.","Стальная монтажная рама для установки вертикальных направляющих и пружин в случае не несущих монтажных поверхностей, таких как: газобетон, изоляционные панели, сэндвич-панели и т.д."]
[{"$nulls":32},"Montaż prowadzenia poziomego można wykonać w oddaleniu maks. 1 metra od konstrukcji stałej.","Montáž vodorovného vedení může být max. 1 metr od pevné konstrukce.","Mounting possibilities for the horizontal rails up to 1 meter above the rails must be provided.","Befestigungsmöglichkeit für die Zwischen- und Endaufhängung der horizontalen Laufschienen bis zu max. 1 m über diesen Laufschienen.","Montaż prowadzenia poziomego można wykonać w oddaleniu maks. 1 metra od konstrukcji stałej.","Lorsque les possibilités de montage des rails horizontaux dépassent ","Bevestigingsmogelijkheid voor de tussen- en eindophanging van de horizontale looprails tot max. 1m boven deze looprails.","Paigaldusruum ülalpool siini max. 1m","Asennus mahdollisuudet vaakakiskoille enintään 1 metrin korkeudella kiskoista pitää olla mahdollista.","Способы крепления для горизонтальных направляющих максимум до 1м над данными направляющими."]
[{"$nulls":24},{"$f":"VLOOKUP($AG$22,$AG$2:$AR$94,$AE$1+1,FALSE)","v":"montaż do płaszcza"},{"$nulls":7},"Niezbędne powierzchnie montażowe oraz wolna przestrzeń wg rysunku.","Nezbytné montážní plochy a volný prostor dle nákresu.","Necessary mounting surface and free room as shown.","Benötigte Montageflächen und Freiräume gemäß Zeichnung.","Niezbędne powierzchnie montażowe oraz wolna przestrzeń wg rysunku.","Adapter la structure et l' espace disponible selon nos plans de réservations ci-contre","Benodigde montagevlakken en vrije ruimtes, volgens tekening.","Piisav paigaldusruum vastavalt lisatud joonisele","Tarvittava kiinnityspinta ja vapaa tilaa kuvan mukaisesti.","Необходимые монтажные поверхности и свободное пространство в соответствии с чертежом"]
[{"$nulls":32},"Przygotowanie elektryczne (dla elektrycznie sterowanej bramy segmentowej) :","Elektrická příprava (pro elektricky ovládaná sekční vrata): ","Electrical supply required to be :","Elektrisch (bei elektrisch bedienten Toren):","Przygotowanie elektryczne (dla elektrycznie sterowanej bramy segmentowej) :","Alimentation electrique  (pour porte motorisée) :","Elektrisch: (bij elektrisch bediende deuren)","Elektriliselt avatavate uste jaoks","Sähkönsyöttö tarvittu:","Электрика (для ворот с электрическим управлением):"]
[{"$nulls":32},"Gniazdo CEE 16 A, 5P, 400 V = gniazdo z przewodnikiem zerowym i uziemiającym","Zásuvka CEE 16 A, 5P, 400 V = zásuvka s nulovým a zemnícím vodičem","400V/230V 3 phase neutral and earth terminating, provided by euro plug socket.","Stromzufuhr 400V/230V mittels Eurosteckdose, 3 Phasen+0+PE max.1 meter vom Schaltkasten.","Gniazdo CEE 16 A, 5P, 400 V = gniazdo z przewodnikiem zerowym i uziemiającym","400V triphase T+N avec prise de raccordement CEE 16 A","Voeding  400V/230V door middel van eurostopcontact, 3 fase+0+PE max. ","Toite vedu ajamini - 400V/230V, 3 faasi","400V / 230V 3 vaihe+neutraali ja maadoitus tarjotuna Euro pistorasiasta.","Питание 400V/230V посредством заземленной евророзетки, 3 фазы+0+РЕ "]
[{"$nulls":32},"Zapewnić odpowiednią powierzchnię montażową dla jednostki sterującej silnika 250x400 mm","Zajistit vhodnou montážní plochu pro řídící jednotku motoru 250 x 320 mm","Provide suitable mounting surface for control panel, dimensions 250 x 320 mm","Montagefläche für Schaltkasten, Abmessungen 250 x 400 mm","Zapewnić odpowiednią powierzchnię montażową dla jednostki sterującej silnika 250x400 mm","Assurer une surface de montage adéquate pour le coffret de commande du moteur L.250 x H.400 mm","Montagevlak t.b.v. schakelkast, afmetingen 250 x 400 mm","Kontrolleri jaoks piisava paigaldusruumi tagamine 250x400 mm","Tarjoa sopivan kiinnityspinnan  ohjauspaneelia varten ,mitat 250 x 400 mm","необходимо обеспечить монтажную поверхность для панели управления, размеры 250х400 мм"]
[]
[]
[{"$nulls":32},{"$f":"VLOOKUP(AH35,AH35:AR124,$AE$1,FALSE)","v":"NIEZBĘDNA POWIERZCHNIA MONTAŻOWA"},"NEZBYTNÁ MONTÁŽNÍ PLOCHA","NECESSARY MOUNTING SURFACE","BENÖTIGTE MONTAGEFLÄCHEN","NIEZBĘDNA POWIERZCHNIA MONTAŻOWA","SURFACE NECESSAIRE DE MONTAGE","BENODIGDE MONTAGEVLAKKEN","Vajalik paigaldusruum","TARVITTAVA KIINNITYSPINTA","необходимая монтажная поверхность"]
[{"$nulls":4},{"$f":"VLOOKUP(AG7,AG2:AR94,$AE$1+1,FALSE)","v":"Przekrój B-B"},{"$nulls":27},"Dodatkowych obszarach montażu konsoli","DODATEČNÉ MONTÁŽNÍ PLOCHY PRO KONZOLY","EXTRA PLANES AT WEAK SURFACES","MONTAGEFLÄCHE FÜR DEN MOTOR","Dodatkowych obszarach montażu konsoli","FACILITÉ DE MONTAGE ADDITIONNEL POUR CONSOLE","EXTRA VLAKKEN BIJ ZWAKKE ONDERGROND","Lisaplaadid nõrgale pinnale","LISÄ ASENNUSTILA ","металлокаркас из стальной профильной трубы"]
[{"$nulls":11},{"$f":"VLOOKUP(AG41,AG2:AR94,$AE$1+1,FALSE)","v":"nachylenie podłogi"},{"$nulls":20},"niezbędne miejsce","NEZBYTNÝ VOLNÝ PROSTOR","NECESSARY FREE ROOM","BENÖTIGTER FREIRAUM","niezbędne miejsce","ESPACE LIBRE NECESSAIRE","BENODIGDE VRIJE RUIMTE","Vajalik vaba ruum ","TARVITTAVA VAPAA TILA","необходимое свободное пространство"]
[{"$nulls":32},"Wolnego miejsca na silnik, napęd łańcuchowy","VOLNÝ PROSTOR PRO MOTOR/ŘETĚZ.PŘEVOD","EXTRA FREE ROOM FOR MOTOR/CHAIN","EXTRA FREIRAUM FÜR MOTOR/KETTE","Wolnego miejsca na silnik, napęd łańcuchowy","ESPACE LIBRE POUR MOTEUR / CHAINE DE LEVAGE.","EXTRA VRIJE RUIMTE BIJ MOTOR/KETTING","Lisa vaba ruum mootorile/ketile","LISÄTILA MOOTORIA/KETJUA VARTEN","дополнительное свободное пространство для двигателя/подъемной цепи"]
[]
[]
[{"$nulls":32},{"$f":"VLOOKUP(AH41,AH41:AR133,$AE$1,FALSE)","v":"nachylenie podłogi"},"sklon podlahy","fall of the floor","Bodenneigung","nachylenie podłogi","réservations seuil béton","vloer met waterkering","pinna langus","kaltevuus","пол с водоотводом"]
[{"$nulls":32},{"$f":"VLOOKUP(AH42,AH42:AR134,$AE$1,FALSE)","v":"w kierunku na zewnątrz"},"směrem ven","outside","nach aussen","w kierunku na zewnątrz","à l'extérieur","buitenzijde","väljaspool","ulkopuoli"]
[{"$nulls":32},{"$f":"VLOOKUP(AH43,AH43:AR135,$AE$1,FALSE)","v":"nachylenie 3%"},"sklon 3%","fall 3%","Gefälle 3%","nachylenie 3%","PENTE 3%","afschot 3%","langus 3%","kaltevuus 3%","наклон 3%"]
[{"$nulls":32},{"$f":"VLOOKUP(AH44,AH44:AR136,$AE$1,FALSE)","v":"w kierunku na zewnątrz"},"směrem ven","internal level","Wasserschenkel","w kierunku na zewnątrz","réservations seuil béton","niveau binnen","Sisemine tasand","sisäinen taso"]
[{"$nulls":17},{"$f":"VLOOKUP(AG35,AG2:AR94,$AE$1+1,FALSE)","v":"NIEZBĘDNA POWIERZCHNIA MONTAŻOWA"},{"$nulls":5},{"$f":"VLOOKUP(AG37,AG4:AR95,$AE$1+1,FALSE)","v":"niezbędne miejsce"},{"$nulls":8},{"$f":"VLOOKUP(AH45,AH45:AR137,$AE$1,FALSE)","v":"nachylenie podłogi"},"sklon podlahy","floor with raised","Boden mit","nachylenie podłogi","pente du plancher","vloer met  ","põrand koos tõstetud sisetasandiga","lattia nostetulla","пол с наклоном 3%"]
[]
[{"$nulls":17},{"$f":"VLOOKUP(AG36,AG4:AR95,$AE$1+1,FALSE)","v":"Dodatkowych obszarach montażu konsoli"},{"$nulls":5},{"$f":"VLOOKUP(AG38,AG4:AR95,$AE$1+1,FALSE)","v":"Wolnego miejsca na silnik, napęd łańcuchowy"}]
[{"$nulls":32},{"$f":"VLOOKUP(AH48,AH48:AR143,$AE$1,FALSE)","v":"niezbędna przestrzeń boczna dla silnika lub napędu łańcuchowego"},"nezbytný boční prostor pro motor nebo řetězový pohon","necessary side room for electrical- or hauling chain operation","Benötigter Freiraum bei Elektro- oder Haspelkettenbedienung ","niezbędna przestrzeń boczna dla silnika lub napędu łańcuchowego","écoinçon minimum requis pour le moteur ou treuil a chaîne","benodigde vrije ruimte voor elektrische- of ketting bediening","vajalik küljeruum mootori või tali puhul","tarvittava tila mootori- tai ketjunostolle ","необходимое боковое пространство для электропривода или цепного редуктора"]
[null,{"$f":"VLOOKUP(AG8,AG2:AR94,$AE$1+1,FALSE)","v":"Uwaga:"},{"$nulls":15},{"$f":"VLOOKUP(AG25,AG2:AR94,$AE$1+1,FALSE)","v":"PRACE, KTÓRE MUSZĄ ZOSTAĆ WYKONANE PRZEZ KLIENTA PRZED WYKONANIEM MONTAŻU, O ILE NIE UZGODNIONO INACZEJ."},{"$nulls":14},{"$f":"VLOOKUP(AH49,AH49:AR144,$AE$1,FALSE)","v":"Powierzchnia montażowa dla jednostki sterującej. Wymiary można znaleźć w dokumentacji produktu"},"montážní plocha pro řídící jednotku. Rozměry najdete v dokumentaci ŘJ.","Mounting surface for control panel. See product documentation for dimensions","Montagefläche für Antriebsteuerung. Siehe Produktdokumentation für Abmessungen","Powierzchnia montażowa dla jednostki sterującej. Wymiary można znaleźć w dokumentacji produktu","Surface de montage pour le Coffret de commande","Montagevlak t.b.v. Zie productdocumentatie voor afmetingen","Kontrolli paigaldusala. Vaata toote dokumentatsiooni mõõtmete kohta","Kiinnityspinta ohjauspaneelia varten. Katso mitat tuoteasiakirjoista","монтажная поверхность для блока управления. Размеры см. в документации на изделие"]
[{"$nulls":32},{"$f":"VLOOKUP(AH50,AH50:AR142,$AE$1,FALSE)","v":"oś ok. 1.400 do 1.500 mm od podłogi"},"osa cca 1.400 až 1.500 mm od podlahy","center line ca 1.400 -1.500 mm above floor","Achse ca. 1.400 bis 1.500 mm vom Boden","oś ok. 1.400 do 1.500 mm od podłogi","axe d'env. 1 400 a 1 500 mm a compter ","hartlijn ca. 1.400 - 1.500 boven de vloer","Keskjoon ca 1400-1500 mm põrandast","keskiviiva ca 1,400 -1,500 mm: n korkeudella lattiasta","осевая линия примерно 1.400-1.500 мм над уровнем пола"]
[null,{"$f":"VLOOKUP(AG54,AG2:AR94,$AE$1+1,FALSE)","v":"Ściany tłumaczenia, obok ściany otworu oraz wszystkie obszary i zbiórki musi być kolor."},{"$nulls":15},{"$f":"VLOOKUP(AG26,AG2:AR94,$AE$1+1,FALSE)","v":"Konstrukcyjne:"},{"$nulls":14},{"$f":"VLOOKUP(AH51,AH51:AR146,$AE$1,FALSE)","v":"Parametry gniazdka elektrycznego można znaleźć w dokumentacji produktu."},"Zásuvka, parametry najdete v dokumentaci produktu","Electric outlet parameters can be found in the product documentation.","Die Parameter der Steckdosen sind in der Produktdokumentation zu finden.","Parametry gniazdka elektrycznego można znaleźć w dokumentacji produktu.","Les paramètres des prises électriques sont indiqués dans la documentation du produit.","De parameters van het stopcontact zijn te vinden in de productdocumentatie.","Elektripistiku parameetrid leiate toote dokumentatsioonist.","Pistorasian parametrit löytyvät tuoteasiakirjoista.","Параметры электрической розетки приведены в документации на изделие.","Параметры электрической розетки приведены в документации на изделие."]
[null,{"$f":"VLOOKUP(AG55,AG2:AR94,$AE$1+1,FALSE)","v":"Otwór musi być pionowy i prostokątny."},{"$nulls":15},{"$f":"VLOOKUP(AG27,AG2:AR94,$AE$1+1,FALSE)","v":"Przygotowanie powierzchni montażowych dla prowadzenia bramy oraz dla sprężyn."}]
[null,{"$f":"VLOOKUP(AG56,AG2:AR94,$AE$1+1,FALSE)","v":"Podłoga musi być równa i pozioma."}]
[{"$nulls":17},{"$f":"VLOOKUP(AG28,AG3:AR94,$AE$1+1,FALSE)","v":"Montaż prowadzenia poziomego można wykonać w oddaleniu maks. 1 metra od konstrukcji stałej."},{"$nulls":14},{"$f":"VLOOKUP(AH54,AH54:AR146,$AE$1,FALSE)","v":"Ściany tłumaczenia, obok ściany otworu oraz wszystkie obszary i zbiórki musi być kolor."},"Stěna nad překladem, stěny vedle otvoru a plochy pro montáž konzol musí být rovné a v jedné rovině.","The rear face of the lintel and the door jambs, as well as the surface for the spring packet must be levelled and in line.","Die hinteren Seiten der Sturze und Pfeiler, sowie die Montagefläche für das Federpaket müssen eben und auf einer Linie liegen.","Ściany tłumaczenia, obok ściany otworu oraz wszystkie obszary i zbiórki musi być kolor.","La surface d'appui pour la pose de la porte sectionnelle doit etre dans le meme plan et verticale.","De achterkanten van de penanten, de latei en de montagevlakken van het verenpakket dienen vlak en in één lijn te liggen.","Kõik paigalduspinnad peavad olema ühes tasapinnas ja loodis","Ylä ja sivukarmien sekä jousipaketin asennuspinnan pitää olla tasaisia ja samassa linjassa","Монтажная поверхность должна быть ровной и распологаться в одной вертикальной плоскости"]
[null,{"$f":"VLOOKUP(AG59,AG2:AR94,$AE$1+1,FALSE)","v":"Wymiary podane w mm"},{"$nulls":30},{"$f":"VLOOKUP(AH55,AH55:AR147,$AE$1,FALSE)","v":"Otwór musi być pionowy i prostokątny."},"Otvor musí být svislý a obdélníkový.","Furthermore the opening must be plumb and square.","Im übrigen müssen die lichten Masse eben und rechtwinklig sein.","Otwór musi być pionowy i prostokątny.","L'ouverture de la baie doit etre parfaitement de niveau et d'equerre.","Tevens moet de dagmaat vlak en haaks zijn.","Ava peab olema täpne ja nelinurkne","Lisäksi oviaukon pitää olla pysty- ja vaakasuora sekä nelikulmainen.","Проем также должен быть ровным и прямоугольным."]
[null,"W =",{"$f":"VLOOKUP(AG60,AG2:AR94,$AE$1+1,FALSE)","v":"Szerokość otworu"},null,null,{"$f":"IF(K3=\"\",\"W \",\"W = \" &K3)","v":"W "},{"$f":"IF(K9=\"\",AG74,AG99&\":\" & \"  \" &K9)","v":"Sterowanie elektr. lub za pom. przekł. łańc."},{"$nulls":5},{"$f":"VLOOKUP(AG79,AG6:AR97,$AE$1+1,FALSE)","v":"Wolna przestrzeń nad nadprożem (min.)"},{"$nulls":4},{"$f":"VLOOKUP(AG29,AG2:AR94,$AE$1+1,FALSE)","v":"Niezbędne powierzchnie montażowe oraz wolna przestrzeń wg rysunku."},{"$nulls":14},{"$f":"VLOOKUP(AH56,AH56:AR148,$AE$1,FALSE)","v":"Podłoga musi być równa i pozioma."},"Podlaha musí být rovná a vodorovná.","Floor area must be flat and horizontal.","Der Fussboden muss glatt und waagerecht sein.","Podłoga musi być równa i pozioma.","Le sol doit etre parfaitement horizontal et plan.","De afgewerkte vloer dient vlak en waterpas te liggen.","Põrandapind peab olema sile ja horisontaalne","Lattian pitää olla tasainen ja vaakasuora.","Обработанный пол должен быть ровным и без склонов."]
[null,"H =",{"$f":"VLOOKUP(AG61,AG3:AR94,$AE$1+1,FALSE)","v":"Wysokość otworu"},null,null,{"$f":"IF(K5=\"\",\"H \",\"H = \" &K5)","v":"H "},{"$f":"IF(K9=\"\",\"L/R\",\"L\")","v":"L/R"},{"$f":"IF(K9=\"\",AG114,VLOOKUP(AG66,AG7:AR98,$AE$1+1,FALSE))","v":"Strona silnika "},{"$nulls":3},{"$f":"IF(K9=\"\",\"min. 430\",IF(K9=AG100,\"min. \" &280,IF(K9=AG102,\"min. 360\",IF(K9=AG105,\"min. 430\",\"min. \" &280))))","v":"min. 430"},"F","min. 850; max 1450 ",null,{"$f":"IF(K7=\"\",\"\",K7)","v":""},null,{"$f":"VLOOKUP(AG30,AG2:AR94,$AE$1+1,FALSE)","v":"Przygotowanie elektryczne (dla elektrycznie sterowanej bramy segmentowej) :"}]
[null,"HL = ",{"$f":"VLOOKUP(AG62,AG4:AR95,$AE$1+1,FALSE)","v":"Wyciąg wysoki"},null,null,{"$f":"IF(K7=\"\",\"HL \",\"HL = \" &P58)","v":"HL "},{"$f":"IF(K9=\"\",\"L/R\",\"R\")","v":"L/R"},{"$f":"IF(K9=\"\",AG115,VLOOKUP(AG67,AG8:AR99,$AE$1+1,FALSE))","v":"Druga strona "},{"$nulls":3},{"$f":"IF(K9=\"\",\"min.280\",IF(K9=AG100,\"min. \" &280,IF(K9=AG103,\"min. 360\",IF(K9=AG106,\"min. 430\",\"min. \" &280))))","v":"min.280"},"HL",null,"F - 250",{"$f":"IF(OR(K3=\"\",K5=\"\",P57=\"\"),\"\",P57-250)","v":""},null,{"$f":"AG51","v":"Parametry gniazdka elektrycznego można znaleźć w dokumentacji produktu."}]
[null,"E = ",{"$f":"VLOOKUP(AG63,AG4:AR95,$AE$1+1,FALSE)","v":"Wysokość stropu"},null,null,{"$f":"IF(K7=\"\",\"E\",\"E = \" &P59)","v":"E"},{"$f":"IF(G57=\"\",\"\",\"D\")","v":"D"},{"$f":"VLOOKUP(AG68,AG9:AR100,$AE$1+1,FALSE)","v":"Głębokość prowadzenia poziomego"},null,null,{"$f":"IF(G57=\"\",\"\",\"H - HL + 950\")","v":"H - HL + 950"},{"$f":"IF(OR(K5=\"\",K7=\"\"),\"\",K5-P58+950)","v":""},"E",null,"H + F",{"$f":"IF(OR(K3=\"\",K5=\"\",P57=\"\"),\"\",K5+P57)","v":""},{"$nulls":16},{"$f":"VLOOKUP(AH59,AH59:AR151,$AE$1,FALSE)","v":"Wymiary podane w mm"},"Rozměry jsou v mm","UNITS in mm","MASSE in mm","Wymiary podane w mm","MESURES en mm","MATEN in mm","Mõõdud mm","YKSIKKÖ mm","размеры в мм:"]
[null,"F = ","Wolna przestrzeń nad nadprożem",null,null,{"$f":"IF(K7=\"\",\"F \",\"F = \" &K7)","v":"F "},{"$f":"IF(OR(L59=\"\",L59<=3000),VLOOKUP(AG77,AG6:AR97,$AE$1+1,FALSE),\"\")","v":"Punkty mocowania, jeżeli"},null,{"$f":"IF(G60=\"\",\"\",\"D<=3000\")","v":"D<=3000"},{"$nulls":3},{"$f":"VLOOKUP(AG80,AG6:AR97,$AE$1+1,FALSE)","v":"Oś wału nad nadprożem"},{"$nulls":4},{"$f":"VLOOKUP(AG83,AG2:AR94,$AE$1+1,FALSE)","v":"Wykonał:"},null,{"$f":"VLOOKUP(AG84,AG2:AR94,$AE$1+1,FALSE)","v":"Skorygował:"},null,{"$f":"VLOOKUP(AG85,AG2:AR94,$AE$1+1,FALSE)","v":"Skorygowano dnia:"},null,{"$f":"VLOOKUP(AG86,AG2:AR94,$AE$1+1,FALSE)","v":"Nazwa pliku:"},null,{"$f":"VLOOKUP(AG87,AG2:AR94,$AE$1+1,FALSE)","v":"Data:"},{"$f":"VLOOKUP(AG88,AG2:AR94,$AE$1+1,FALSE)","v":"Podział.:"},{"$f":"VLOOKUP(AG89,AG2:AR94,$AE$1+1,FALSE)","v":"Format:"},{"$nulls":4},"Szerokość otworu","Šířka otvoru","Opening width","Lichte Breite","Szerokość otworu","LARGEUR DE BAIE","Dagmaat breedte","Ava laius","Oviaukon leveys","ширина проема"]
[null,"J = ","Wysokość powyżej otworu montażowego powierzchni",null,null,{"$f":"IF(OR(K3=\"\",K9=\"\"),\"J\",\"J = \"&P64)","v":"J"},{"$f":"IF(G60=\"\",\"\",\"X\")","v":"X"},{"$f":"IF(G60=\"\",\"\",VLOOKUP(AG78,AG6:AR97,$AE$1+1,FALSE))","v":"Punkty mocowania"},null,null,{"$f":"IF(G60=\"\",\"\",\"H - HL\")","v":"H - HL"},{"$f":"IF(G60=\"\",\"\",IF(OR(K3=\"\",K5=\"\",P57=\"\"),\"\",K5-P58))","v":""},"A",null,null,150,null,"K. Luňák",null,"R. Kříž",null,"2023-12-11",null,"STP",null,"2023-12-11","-","A3",{"$nulls":4},"Wysokość otworu","Výška otvoru","Opening height","Lichte Höhe","Wysokość otworu","HAUTEUR DE BAIE","Dagmaat hoogte","Ava kõrgus","Oviaukon korkeus","высота проема"]
[null,"L = ",{"$f":"VLOOKUP(AG66,AG7:AR98,$AE$1+1,FALSE)","v":"Wolna przestrzeń W LEWO"},null,null,{"$f":"IF(OR(K9=\"\"),\"L\",IF(Obrázky!Z16=\"\",\"L = 280\",IF(OR(K9=\"\"),\"L \",Obrázky!$Z$16)))","v":"L"},{"$f":"IF(L59>3000,VLOOKUP(AG77,AG6:AR97,$AE$1+1,FALSE),\"\")","v":"Punkty mocowania, jeżeli"},null,{"$f":"IF(G62=\"\",\"\",\"D>3000\")","v":"D>3000"},{"$nulls":8},"http://door-documents.com/en/indy-installation-drawing-hl1-t",{"$nulls":3},{"$f":"VLOOKUP(AG90,AG2:AR94,$AE$1+1,FALSE)","v":"PRZYGOTOWANIE_KONSTRUKCYJNE Zarządzanie z PŘEDMONT. WAŁ DO DUŻEJ TŁUMACZENIA (HL-1T) HL <1200"},{"$nulls":10},"Wyciąg wysoki","High lift","High lift","Höhe der Führung","Wyciąg wysoki","LEEVE HAUTE","High lift","Kõrge tõste","korkeanosto","Высокий подъем"]
[null,"R = ",{"$f":"VLOOKUP(AG67,AG8:AR99,$AE$1+1,FALSE)","v":"Wolna przestrzeń W PRAWO"},null,null,{"$f":"IF(OR(K9=\"\"),\"R\",IF(Obrázky!Z17=\"\",\"R = 280\",IF(OR(K9=\"\"),\"R\",Obrázky!$Z$17)))","v":"R"},{"$f":"IF(G62=\"\",\"\",\"X\")","v":"X"},{"$f":"IF(G62=\"\",\"\",VLOOKUP(AG69,AG6:AR97,$AE$1+1,FALSE))","v":"Punkt mocowania nr 1"},null,null,{"$f":"IF(G62=\"\",\"\",\"H - HL\")","v":"H - HL"},{"$f":"IF(G62=\"\",\"\",IF(OR(K3=\"\",K5=\"\",P57=\"\"),\"\",K5-P58))","v":""},{"$nulls":20},"Wysokość stropu","Výška stropu","Interior height","Höhe Innenraum","Wysokość stropu","HAUTEUR SOUS PLAFOND","Hoogte binnenruimte","Sisemine kõrgus","sisäkorkeus","высота внутри помещения до перекрытий"]
[null,"D = ",{"$f":"VLOOKUP(AG68,AG9:AR100,$AE$1+1,FALSE)","v":"Głębokość prowadzenia poziomego"},null,null,{"$f":"IF(AND(K5=\"\",K7=\"\"),\"D\",IF(K9=AG100,\"D = \"&L58,\"D = \"&L59))","v":"D"},{"$f":"IF(G62=\"\",\"\",\"Y\")","v":"Y"},{"$f":"IF(G62=\"\",\"\",VLOOKUP(AG70,AG6:AR97,$AE$1+1,FALSE))","v":"Punkt mocowania nr 2"},null,null,{"$f":"IF(G62=\"\",\"\",\"1/2 X\")","v":"1/2 X"},{"$f":"IF(G62=\"\",\"\",IF(OR(K3=\"\",K5=\"\",P57=\"\"),\"\",L63/2))","v":""},"J",null,"HL + 220",{"$f":"IF(OR(K3=\"\",K5=\"\",P57=\"\"),\"\",P58+220)","v":""},{"$nulls":16},"Wolna przestrzeń nad nadprożem","Volný prostor nad překladem","Free room above lintel","Freiraum über Sturz","Wolna przestrzeń nad nadprożem","RETOMBEE DE LINTEAU DISPONIBLE","Vrije ruimte boven latei","Vaba ruum laeni","vapaa ylätila","свободное пространство над проемом"]
[null,"X =",{"$f":"VLOOKUP(AG69,AG13:AR102,$AE$1+1,FALSE)","v":"Punkt mocowania nr 1"},null,null,{"$f":"IF(OR(K5=\"\",K7=\"\"),\"X\",IF(Obrázky!Z18<=3000,\"X = \"&L61,\"X = \"&L63))","v":"X"},{"$nulls":6},"Z",{"$f":"IF(OR(Obrázky!Z22>=9000,K11=AG113),350,AG95)","v":"Nie jest wymagane"},{"$nulls":18},"Wysokość powyżej otworu montażowego powierzchni","Výška montážní plochy nad otvorem","Height of frame above opening","Höhe über Montagefläche Loch","Wysokość powyżej otworu montażowego powierzchni","HAUTEUR AU-DESSUS DU TROU DE SURFACE DE MONTAGE","Hoogte frame boven latei","Raami kõrgus ava kohal","Rungon korkeus oviaukon yläpuolella.","высота конструкции ворот над проемом"]
[null,"Y = ",{"$f":"VLOOKUP(AG70,AG14:AR103,$AE$1+1,FALSE)","v":"Punkt mocowania nr 2"},null,null,{"$f":"IF(OR(K5=\"\",K7=\"\"),\"Y\",IF(Obrázky!Z18<=3000,\"Y = 0\",\"Y = \"&L64))","v":"Y"},{"$nulls":26},"Wolna przestrzeń W LEWO","Volný prostor vlevo","Free side room left","Freiraum LINKS","Wolna przestrzeń W LEWO","ECOINCON GAUCHE","Vrije zijruimte links","Vaba küljeruum vasakul","vapaa tila vasemalla","свободное боковое пространство СЛЕВА"]
[{"$nulls":21},{"$f":"AG12","v":"PROWADZENIE DLA WYSOKIEGO NADPROŻA (HL-1T)"},{"$nulls":3},{"$f":"VLOOKUP(AG93,AG2:AR94,$AE$1+1,FALSE)","v":"Kod:"},{"$f":"VLOOKUP(AG94,AG2:AR94,$AE$1+1,FALSE)","v":"Wersja:"},{"$nulls":5},"Wolna przestrzeń W PRAWO","Volný prostor vpravo","Free side room right","Freiraum RECHTS","Wolna przestrzeń W PRAWO","ECOINCON DROITE","Vrije zijruimte rechts","Vaba küljeruum paremal","vapaa tila oikealla","свободное боковое пространство СПРАВА"]
[{"$nulls":25},"C40-1C",2350,{"$nulls":5},"Głębokość prowadzenia poziomego","Hloubka vedení","Back room","Einbautiefe","Głębokość prowadzenia poziomego","REFOULEMENT HORS-TOUT","Inbouwdiepte","Sügavus","tila takana","монтажная глубина"]
[{"$nulls":32},"Punkt mocowania nr 1","Kotvící bod č. 1","1 st hanging point","1. Aufhängepunkt","Punkt mocowania nr 1","POINT D'ANCRAGE 1 SUSPENTE","1e ophangpunt","1.kinnituskoht","1. ripustuspiste","1 точка крепления горизонтальных направляющих"]
[{"$nulls":32},"Punkt mocowania nr 2","Kotvící bod č. 2","2 nd hanging point","2. Aufhängepunkt","Punkt mocowania nr 2","POINT D'ANCRAGE 2 SUSPENTE","2e ophangpunt","2.kinnituskoht","2. ripustuspiste","2 точка крепления горизонтальных направляющих"]
[{"$nulls":32},"Wolny przestrzeń nad nadproźem","Volný prostor nad překladem","Free room above mounting surface","Freiplatz auf der Mountageplatz","Wolny przestrzeń nad nadproźem","Espace au-dessus de la surface de montage","Ruimte boven montagevlak","3. kinnituskohta","3. ripustuspiste","3 точка крепления горизонтальных направляющих"]
[{"$nulls":32},"Sterowanie ręczne","Ruční ovládání","Manually operated","Handbedienung","Sterowanie ręczne","PORTE MANUELLE","Handbediend","Vaba ruum ülalpool paigalduspinda","Vapaa tila asennuspisten kohdalla","технологический зазор"]
[{"$nulls":32},"Obie strony","Obě strany","Both sided","Beide Seiten","Obie strony","LES 2 COTES","Beide zijden","Käsitsi avatav","Käsikäyttöinen","ручное управление"]
[{"$nulls":32},"Sterowanie elektr. lub za pom. przekł. łańc.","Ovládání elektricky nebo řetězovým převodem","Electrical or hauling chain operated","Elektrisch- oder Haspelkettenbedient","Sterowanie elektr. lub za pom. przekł. łańc.","PORTE MOTORISEE OU AVEC TREUIL A CHAINE","Elektrisch- of handketting bediend","Mõlemal pool","\nKaksipuoleinen","обе стороны"]
[{"$nulls":32},"Silnik lub przekł. łańc.","Motor nebo řetěz. př.","Motor or chain side","Motor-oder Kettenseite","Silnik lub przekł. łańc.","ECOINCON LIBRE A COTE DE MOTEUR","Motor- of kettingzijde","Elektriliselt või taliga avatav","Sähkö- tai ketjukäytöinen","электрическое управление или с помощью цепи"]
[{"$nulls":32},"Głębokość prowadzenia","Hloubka vedení","Back room","Einbautiefe","Głębokość prowadzenia","REFOULEMENT HORS-TOUT","Inbouwdiepte","Mootori või tali pool","Mootorin tai ketjun puolinen","сторона цепи или мотора"]
[{"$nulls":32},"Punkty mocowania, jeżeli","Kotvící bod, když je","Hanging point if","Aufhängepunkte, wenn","Punkty mocowania, jeżeli","POINT D'ANCRAGE DES SUSPENTES, SI","Ophangpunt, als","Sügavus","Tila takana","монтажная глубина"]
[{"$nulls":32},"Punkty mocowania","Kotvící bod","Hanging point","Aufhängepunkte","Punkty mocowania","POINT D'ANCRAGE DES SUSPENTES","Ophangpunt","Kinnituskoht, kui ","Ripustuspiste jos","точки крепления горизонтальных направляющих, если"]
[{"$nulls":32},"Wolna przestrzeń nad nadprożem (min.)","Volný prostor nad překladem","Free room above lintel","Freiraum über Sturz","Wolna przestrzeń nad nadprożem (min.)","RETOMBEE DE LINTEAU DISPONIBLE","Vrije ruimte boven latei","Kinntuskoht","Ripustuspiste","точка крепления"]
[{"$nulls":32},"Oś wału nad nadprożem","Osa hřídele nad překladem","Height of shaft above lintel","Mitte Achse zum Sturz","Oś wału nad nadprożem","POSITIONNEMENT AXE DE l'ARBRE DE LINTEAU","Center as boven latei","Vaba ruum sillusest  laeni","Tila oviaukon päällä","свободное пространство над проемом"]
[{"$nulls":39},"Kesktelg","Akseli ovipalkkin päällä","центральная ось вала"]
[]
[{"$nulls":32},{"$f":"VLOOKUP(AH83,AH83:AR175,$AE$1,FALSE)","v":"Wykonał:"},"Sestavil:","Designed by:","Aufgestellt:","Wykonał:","DESSINE PAR:","Getekend door:","Joonestatud:","\nSuunnitellut:","спроектировано:"]
[{"$nulls":32},"Skorygował:","Upravil:","Checked by","Bereinigt:","Skorygował:","MODIFIE PAR:","Gecontroleerd door:","Kontrollitud:","Tarkistanut","проверил:"]
[{"$nulls":32},"Skorygowano dnia:","Schváleno - datum:","Approved by - date:","Bereinigt am:","Skorygowano dnia:","MODIFIE LE (DATE):","Goedgekeurd datum:","Kinnitatud:","\nHyväksytty - päivämäärä:","одобрил-дата:"]
[{"$nulls":32},"Nazwa pliku:","Název souboru:","File name:","Dateiname:","Nazwa pliku:","TITRE:","Bestandsnaam","Faili nimi:","\nTiedoston nimi:","навание файла:"]
[{"$nulls":32},"Data:","Datum:","Date:","Datum:","Data:","DATE:","Datum:","Kuupäev:","Päivämäärä:","дата:"]
[{"$nulls":32},"Podział.:","Měřítko","Scale:","Massst.:","Podział.:","ECHELLE:","Schaal:","Mõõtkava:","Mittakaava:","шкала:"]
[{"$nulls":32},"Format:","Formát: ","Sheet:","Format:","Format:","FORMAT:","Sheet:","Formaat:","Lista:","лист:"]
[{"$nulls":32},"PRZYGOTOWANIE_KONSTRUKCYJNE Zarządzanie z PŘEDMONT. WAŁ DO DUŻEJ TŁUMACZENIA (HL-1T) HL <1200","STAVEBNÍ PŘIPRAVENOST VEDENÍ           S PŘEDMONT. HŘÍDELÍ PRO VYSOKÝ PŘEKLAD (HL-1T) HL<1200","INSTALLATION DRAWING PRE-ASSEMBLED HIGH LIFT SYSTEM (HL-1T) HL < 1200","EINBAUZEICHNUNG VORMONTIERTER HÖHERGEFÜHRTER BESCHLAG (HL-1T) HL < 1200","PRZYGOTOWANIE_KONSTRUKCYJNE Zarządzanie z PŘEDMONT. WAŁ DO DUŻEJ TŁUMACZENIA (HL-1T) HL <1200","PLAN DE L'INSTALLATION POUR SYSTEME LINTEAU HAUT PRE-ASSEMBLE (HL-1T) HL < 1200","INBOUWTEKENING VOORGEASSEMBLEERD HOOG PLAFONDSYSTEEM (HL-1T) HL <  1200","Paigaldusjoonis HL-1T tõstele (vedrud konsoolil), HL < 1200","ASENNUSPIIRUSTUS ESIKOOTTU KORKEANOSTO JÄRJESTELMÄ (HL-1T) HL < 1200","МОНТАЖНЫЙ ЧЕРТЕЖ ПРЕДСОБРАННАЯ СИСТЕМА С ВЫСОКИМ ПОДЪЕМОМ (HL-1T)  HL<1200"]
[{"$nulls":32},"sprężyny nad nadprożem ","pružiny nad překladem ","springs above lintel "," Federn oberhalb des Sturzes ","sprężyny nad nadprożem ","RESSORTS AVANTS DEPORTES DU LINTEAU","verenpakket boven latei","vedrud ava kohal","jouset ovipalkkin päällä","нижнее расположение вала"]
[{"$nulls":32},"PROWADZENIE PIONOWE (VL-T)","VERTIKÁLNÍ SYSTÉM","VERTICAL LIFT SYSTEM","VERTIKALER BESCHLAG (VL-T)","PROWADZENIE PIONOWE (VL-T)","LEVEE VERTICALE (VL)","VERTICAAL PLAFONDSYSTEEM"]
[{"$nulls":32},"Kod:","Kód:","Code:","Kode:","Kod:","CODE:","Nr.:","Kood:","Koodi:","код:"]
[{"$nulls":32},"Wersja:","Verze:","Version:","Version:","Wersja:","VERSION:","Versie:","Versioon:","Versio:","версия:"]
[{"$nulls":32},"Nie jest wymagane","NENÍ POŽADOVÁNO","NOT REQUIRED","NICHT ERFORDELICH","Nie jest wymagane","Pas nécessaire","NIET BENODIGD","Mitte vajalik","EI VAADITTU","НЕ ТРЕБУЕТСЯ"]
[]
[{"$nulls":32},{"$f":"VLOOKUP(AH97,AH97:AR189,$AE$1,FALSE)","v":"Prosimy o wypełnienie pól oznaczonych kolorem!"},"Prosím, vyplňte pole, která jsou označena barevně!","Please, fill in the fields that are marked in color!","Fülen Sie bitte markierte Felder!","Prosimy o wypełnienie pól oznaczonych kolorem!","S'il vous plaît remplissez les champs qui sont marqués en couleur!","Vul a.u.b. de gemarkeerde velden in!","Palun täida värvilised väljad!","\nTäytä kentät, jotka on merkitty värillä!","пожалуйста, заполните поля обозначенные цветом!"]
[]
[{"$nulls":32},{"$f":"VLOOKUP(AH99,AH99:AR191,$AE$1,FALSE)","v":"Sterowanie"},"Ovládání","Operated","Bedienung","Sterowanie","PORTE","Bediening","Avamine","Ohjattu","Тип управления"]
[{"$nulls":32},{"$f":"VLOOKUP(AH100,AH100:AR192,$AE$1,FALSE)","v":"ręcznie wykonany"},"ručně","manually","hand","ręcznie wykonany","MANUELLE","hand","käsitsi","manuaalisesti","вручную"]
[{"$nulls":32},{"$f":"VLOOKUP(AH101,AH101:AR193,$AE$1,FALSE)","v":"elektrycznie"},"elektricky","electrical ","elektrisch","elektrycznie","MOTORISEE","elektrisch","elektriliselt","sähköisesti","электрическое управление или с помощью цепи"]
[{"$nulls":32},{"$f":"VLOOKUP(AH102,AH102:AR197,$AE$1,FALSE)","v":"Łańcuch napędu -  lewy"},"řetězovým převodem vlevo","hauling chain operated - left","Haspelkette - links","Łańcuch napędu -  lewy","TREUIL A CHAINE - gauche","handketting - links","taliga - vasakule","ketjukäyttöinen - vasen","цепной привод -  левый\n","Łańcuch napędu -  lewy","řetězovým převodem vlevo","hauling chain operated - left","Haspelkette - links","Łańcuch napędu -  lewy","TREUIL A CHAINE - gauche","handketting - links","taliga - vasakule","ketjukäyttöinen - vasen","цепной привод -  левый\n"]
[{"$nulls":32},{"$f":"VLOOKUP(AH103,AH103:AR198,$AE$1,FALSE)","v":"Łańcuch napędu -  prawy"},"řetězovým převodem vpravo","hauling chain operated - right","Haspelkette - rechts","Łańcuch napędu -  prawy","TREUIL A CHAINE - droite","handketting - rechts","taliga - paremale","ketjukäyttöinen - oikea","цепной привод -  правая",{"$f":"VLOOKUP(AR103,AR103:BB198,$AE$1,FALSE)","v":"Łańcuch napędu -  prawy"},"řetězovým převodem vpravo","hauling chain operated - right","Haspelkette - rechts","Łańcuch napędu -  prawy","TREUIL A CHAINE - droite","handketting - rechts","taliga - paremale","ketjukäyttöinen - oikea","цепной привод -  правая"]
[{"$nulls":32},{"$f":"VLOOKUP(AH104,AH104:AR196,$AE$1,FALSE)","v":"Pozycja sylnika"},"Umístění motoru","Position of motor","Antriebesposition","Pozycja sylnika","LA POSITION MOTEUR","Positie van de motor","mootori asukohta","Mootorin asema","расположение мотора"]
[{"$nulls":32},{"$f":"VLOOKUP(AH105,AH105:AR200,$AE$1,FALSE)","v":"silnik elektryczny po lewej stronie"},"Elektricky - motor vlevo","electric motor on the left","Antrieb - links","silnik elektryczny po lewej stronie","moteur électrique à gauche","elektromotor links","elektrimootor vasakul","sähkömoottori oikealla","электродвигатель слева"]
[{"$nulls":32},{"$f":"VLOOKUP(AH106,AH106:AR201,$AE$1,FALSE)","v":"silnik elektryczny po prawej stronie"},"Elektricky - motor vpravo","electric motor on the right","Antrieb - rechts","silnik elektryczny po prawej stronie","moteur électrique à droite","elektromotor rechts","elektrimootor paremal","sähkömoottori vasemmalla","электродвигатель справа"]
[]
[{"$nulls":32},{"$f":"VLOOKUP(AH108,AH108:AR185,$AE$1,FALSE)","v":"Stalowa konstrukcja spawana z profilu według wymiarów 100x50x4"},"Ocelovou konstrukci svařit z profilu 100x50x4 dle uvedených rozměrů","Welded steel construction of the profile according to the dimensions 100x50x4","Geschweißte Stahlkonstruktion des Profils nach dem Maße 100x50x4","Stalowa konstrukcja spawana z profilu według wymiarów 100x50x4","Construction en acier soudé du profil en fonction de la dimension 100x50x4","Staalconstructie van het profiel 100x50x4 volgens de afmetingen lassen","Keevitatud teraskonstrukstioon 100x50x4 profiilidest","Profiilin hitsattu teräsrakenne mittojen mukaan 100x50x4","Стальная конструкция из профильной трубы 100х50х4 мм"]
[{"$nulls":32},{"$f":"VLOOKUP(AH109,AH109:AR204,$AE$1,FALSE)","v":"Oferta/Zamówienie:"},"Nabídka/Objednávka:","Offer/Order:","Angebot/Bestellung:","Oferta/Zamówienie:","Offre/Commande:","Offerte/Order:","Pakkumine/tellimus:","Tarjous/Tilaus:","Предложение/заказ:"]
[{"$nulls":32},{"$f":"VLOOKUP(AH110,AH110:AR205,$AE$1,FALSE)","v":"Pozycje:"},"Pozice:","Position:","Position:","Pozycje:","Positions:","Positie:","Ametikohad:","Työpaikat:","Позиции:"]
[{"$nulls":32},{"$f":"VLOOKUP(AH111,AH111:AR187,$AE$1,FALSE)","v":"Rodzaj panelu"},"Typ panelu","Type of panel","Paneel-Typ","Rodzaj panelu","Type de panneau","Panel type","Paneelitüüp","lamellin tyypi","Тип панели"]
[{"$nulls":32},{"$f":"VLOOKUP(AH112,AH112:AR203,$AE$1,FALSE)","v":" 40 mm"},"40mm","40 mm","40 mm"," 40 mm","40 mm "," 40 mm","40 mm","40mm","40мм "]
[{"$nulls":32}," 80 mm","80mm","80 mm","80 mm"," 80 mm","80 mm ","80 mm","80 mm","80mm"," 80мм "]
[{"$nulls":32},{"$f":"VLOOKUP(AH114,AH114:AR209,$AE$1,FALSE)","v":"Strona silnika "},"Strana motoru","Motor side ","Antriebseite ","Strona silnika ","Côté moteur ","Motorzijde ","Mootori pool ","Moottorin puoli ","Сторона двигателя "]
[{"$nulls":32},"Druga strona ","Druhá strana","Other side","Andere Seite ","Druga strona ","Autre côté ","Andere kant ","Teine pool ","Muu puoli ","Другая сторона "]

{"sheet":"SW-R","index":1,"n_rows":48,"n_cols":5,"rows_kept":48,"merged":[[0,8,11,8],[5,0,9,0],[15,0,20,0],[39,2,40,8],[41,2,42,3],[41,4,42,6],[41,7,48,8],[43,2,44,3],[43,4,44,6],[45,2,46,3],[45,4,46,6],[47,2,48,3],[47,4,48,6]]}
{"$rows_empty":39}
[null,null,{"$f":"general!Q2","v":"PROWADZENIE DLA WYSOKIEGO NADPROŻA (HL-1T)"}]
[]
[null,null,{"$f":"general!AG104","v":"Pozycja sylnika"},null,{"$f":"general!AG106","v":"silnik elektryczny po prawej stronie"}]
[]
[null,null,{"$f":"general!AG83","v":"Wykonał:"}]
[]
[null,null,{"$f":"general!AG84","v":"Skorygował:"}]
[]
[null,null,{"$f":"general!AG87","v":"Data:"}]

{"sheet":"SW-L","index":2,"n_rows":48,"n_cols":5,"rows_kept":48,"merged":[[0,8,11,8],[5,0,9,0],[15,0,20,0],[39,2,40,8],[41,2,42,3],[41,4,42,6],[41,7,48,8],[43,2,44,3],[43,4,44,6],[45,2,46,3],[45,4,46,6],[47,2,48,3],[47,4,48,6]]}
{"$rows_empty":39}
[null,null,{"$f":"general!Q2","v":"PROWADZENIE DLA WYSOKIEGO NADPROŻA (HL-1T)"}]
[]
[null,null,{"$f":"general!AG104","v":"Pozycja sylnika"},null,{"$f":"general!AG105","v":"silnik elektryczny po lewej stronie"}]
[]
[null,null,{"$f":"general!AG83","v":"Wykonał:"}]
[]
[null,null,{"$f":"general!AG84","v":"Skorygował:"}]
[]
[null,null,{"$f":"general!AG87","v":"Data:"}]

{"sheet":"Manually_operated","index":3,"n_rows":48,"n_cols":5,"rows_kept":48,"merged":[[0,8,11,8],[5,0,9,0],[15,0,20,0],[39,2,40,8],[41,2,42,3],[41,4,42,6],[41,7,48,8],[43,2,44,3],[43,4,44,6],[45,2,46,3],[45,4,46,6],[47,2,48,3],[47,4,48,6]]}
{"$rows_empty":39}
[null,null,{"$f":"general!Q2","v":"PROWADZENIE DLA WYSOKIEGO NADPROŻA (HL-1T)"}]
[]
[null,null,{"$f":"general!AG99","v":"Sterowanie"},null,{"$f":"general!AG100","v":"ręcznie wykonany"}]
[]
[null,null,{"$f":"general!AG83","v":"Wykonał:"}]
[]
[null,null,{"$f":"general!AG84","v":"Skorygował:"}]
[]
[null,null,{"$f":"general!AG87","v":"Data:"}]

{"sheet":"Obrázky","index":4,"n_rows":128,"n_cols":28,"rows_kept":128,"hidden":true,"merged":[[5,24,7,30],[19,3,43,3],[19,4,43,10],[46,3,70,3],[46,4,70,10],[73,3,97,3],[73,4,97,10],[100,3,124,3],[100,4,124,10],[127,3,151,3],[127,4,151,10]]}
[]
[]
[]
[]
[]
[{"$nulls":24},"Pomocné výpočty"]
[]
[]
[]
[{"$nulls":17},{"$f":"IF(OR(general!K9=general!AG106,general!K9=general!AG103),\"\")","v":false}]
[{"$nulls":27},{"$f":"IF(general!K9=general!AG100,280+280,IF(OR(general!K9=general!AG102,general!K9=general!AG103),360+280,430+280))","v":710}]
[{"$nulls":24},"W=",4500]
[{"$nulls":24},"L+ W + R = ",{"$f":"IF(OR(general!K3=\"\",general!K7=\"\"),\"L + W + R \",\"L + W + R = \" & general!K3 +AB11)","v":"L + W + R "}]
[]
[]
[{"$nulls":24},"Vlevo nahoře",{"$f":"IF(OR(general!K9=general!AG106,general!K9=general!AG103),\"\",IF(general!K9=general!AG105,\"L = \" & 430,IF(general!K9=general!AG102,\"L = \" & 360,\"\")))","v":""},{"$f":"IF(OR(general!L9=general!AH106,general!L9=general!AH103),\"\",IF(general!L9=general!AH105,\"L = \" & 430,IF(general!L9=general!AH102,\"L = \" & 360,\"\")))","v":""}]
[{"$nulls":24},"Vpravo nahoře",{"$f":"IF(OR(general!K9=general!AG102,general!K9=general!AG105),\"\",IF(general!K9=general!AG106,\"R = \" & 430,IF(general!K9=general!AG103,\"R = \" & 360,\"\")))","v":""},{"$f":"IF(OR(general!K9=general!AG102,general!K9=general!AG105),\"\",IF(general!K9=general!AG106,\"R = \" & 430,IF(general!K9=general!AG103,\"R = \" & 360,\"\")))","v":""}]
[{"$nulls":24},"D",{"$f":"general!L59","v":""}]
[{"$nulls":25},280]
[{"$nulls":3},{"$f":"general!AG106","v":"silnik elektryczny po prawej stronie"},{"$nulls":21},{"$f":"IF(OR(general!K11=general!AG112,general!$K$11=\"\"),250,290)","v":250}]
[{"$nulls":25},{"$f":"IF(general!K5=\"\",\"\",IF(general!K5<5500,160,200))","v":""}]
[{"$nulls":24},"Plocha pro výpočet pomocné konzole Z",{"$f":"(general!K3*general!K5)/1000","v":0}]
{"$rows_empty":24}
[{"$nulls":3},{"$f":"general!AG105","v":"silnik elektryczny po lewej stronie"}]
{"$rows_empty":26}
[{"$nulls":3},{"$f":"general!AG102","v":"Łańcuch napędu -  lewy"}]
{"$rows_empty":26}
[{"$nulls":3},{"$f":"general!AG103","v":"Łańcuch napędu -  prawy"}]
{"$rows_empty":26}
[{"$nulls":3},{"$f":"general!AG100","v":"ręcznie wykonany"}]